Cogmind - Beta 13 @@@ ROGUE MODE // 2024.05.01 @ 13:09:15 Player: NOGames Result: Destroyed by G-67 Veteran with Plasma Rifle Performance ------------- Evolutions (7) 3500 Regions Visited (11) 2200 Robots Destroyed (96) 480 Value Destroyed (4032) 4032 Prototype IDs (7) 140 Alien Tech Used (0) 0 Bonus (311) 311 TOTAL SCORE: 10663 Bonus ------- High Alert Combat Kills 32 Follower Combat Kills 279 Cogmind --------- Core Integrity 0/1300 Matter 78/300 Energy 81/100 System Corruption 6% Temperature Cool (0) Movement Core (50) Location -3/Research Parts ------- > --- POWER (1) -------- (None) > --- PROPULSION (4) --- (None) > --- UTILITY (9) ------ Improved Signal Interpreter Advanced Signal Interpreter Armor Integrity Analyzer > --- WEAPON (7) ------- (None) > --- INVENTORY (5) ---- Improved Heat Sink Humpback Matter Compressor (126) Peak State ------------ > --- POWER ------------ Light Particle Reactor > --- PROPULSION ------- Advanced Myomer Leg Advanced Myomer Leg Improved Gyrokinetic Inverter > --- UTILITY ---------- Experimental Coolant Injector Improved Sensor Array Improved Signal Interpreter Advanced Signal Interpreter Armor Integrity Analyzer Advanced Reaction Control System Heavy Reactive Plating Hacking Suite > --- WEAPON ----------- Compact HERF Cannon Matter Neutralizer Nova Cannon Nova Cannon Micro-nuke Launcher Scythe > --- INVENTORY -------- Improved Heat Sink Humpback Matter Compressor [Rating: 117] Favorites ----------- Power Ion Engine Engine Ion Engine Power Core Neutrino Core Reactor Light Particle Reactor Propulsion Light Treads Treads Light Treads Leg Advanced Myomer Leg Wheel Wheel Hover Unit Improved Gyrokinetic Inverter Utility Large Storage Unit Device Advanced Heat Sink Storage Large Storage Unit Processor Armor Integrity Analyzer Hackware Hacking Suite Protection Improved Medium Armor Plating Weapon Gauss Rifle Energy Gun Heavy Laser Energy Cannon Nova Cannon Ballistic Gun Gauss Rifle Ballistic Cannon Gauss Cannon Launcher Micro-nuke Launcher Impact Weapon Hammer Slashing Weapon Katana Piercing Weapon Heavy Pick Build | -11 -10 -9 -8 -7 -6 -5 -5 -4 -4 -4 -3 ------- Run | Yrd Mat Mat Mat Fac Fac Fac Ext Fac Upp Upp Res Slots Evolved 14 | . . 2 2 2 2 2 . 2 . . 2 Power . | . . . . . . . . . . . . Propulsion 2 | . . 1 . . . . . 1 . . . Utility 7 | . . . 1 1 1 1 . 1 . . 2 Weapon 5 | . . 1 1 1 1 1 . . . . . Parts Attached 131 | 2 3 9 16 19 14 6 22 24 3 1 12 Power 13 | . . . 2 1 1 1 1 5 1 . 1 Engine 10 | . . . 2 1 1 . 1 5 . . . Core 2 | . . . . . . 1 . . 1 . . Reactor 1 | . . . . . . . . . . . 1 Propulsion 30 | 2 . 1 2 4 2 2 8 9 . . . Treads 22 | 2 . 1 2 4 2 2 8 1 . . . Leg 2 | . . . . . . . . 2 . . . Wheel 1 | . . . . . . . . 1 . . . Hover 5 | . . . . . . . . 5 . . . Flight . | . . . . . . . . . . . . Utility 34 | . 2 1 3 5 6 1 3 7 1 . 5 Device 18 | . 1 1 . 3 4 . 2 3 1 . 3 Storage 1 | . 1 . . . . . . . . . . Processor 6 | . . . . 1 2 . 1 2 . . . Hackware 3 | . . . . . . 1 . 1 . . 1 Protection 6 | . . . 3 1 . . . 1 . . 1 Artifact . | . . . . . . . . . . . . Weapon 54 | . 1 7 9 9 5 2 10 3 1 1 6 Energy Gun 3 | . . . . 1 . . 2 . . . . Energy Cannon 5 | . . . . . . . . . . . 5 Ballistic Gun 21 | . . 6 4 6 3 1 1 . . . . Ballistic Cannon 3 | . . . . . 1 . 1 . 1 . . Launcher 2 | . . . . . . . 1 . . . 1 Special Weapon . | . . . . . . . . . . . . Impact Weapon 5 | . 1 1 2 . . . 1 . . . . Slashing Weapon 14 | . . . 3 2 1 . 4 3 . 1 . Piercing Weapon 1 | . . . . . . 1 . . . . . Special Melee Weapon . | . . . . . . . . . . . . Unidentified Prototypes 4 | . . 1 . 1 . . . 1 . . 1 Parts Lost 73 | . . 2 2 8 5 8 20 9 4 . 15 Power 5 | . . . 1 . . 1 1 1 . . 1 Propulsion 24 | . . 1 1 3 2 2 8 3 1 . 3 Utility 21 | . . 1 . 2 2 2 3 5 1 . 5 Weapon 23 | . . . . 3 1 3 8 . 2 . 6 Highest Loss Streak 15 | . . 1 1 3 4 8 12 5 3 . 15 To Critical Strikes . | . . . . . . . . . . . . Average Slot Usage (%) 84 | . 99 96 97 95 99 96 85 30 41 42 66 Engine 6 | . 14 11 9 7 6 1 4 1 . . . Treads 17 | . 28 30 26 21 19 16 15 . . . . Leg 1 | . . . . . . . . . 10 10 8 Hover 1 | . . . . . . . . 2 6 5 3 Device 10 | . 13 9 9 12 17 10 8 3 6 5 9 Storage 6 | . 14 11 9 7 6 5 5 . . . . Processor 5 | . . . . 2 7 11 5 10 15 15 14 Hackware 1 | . . . . . . 2 5 4 . . 3 Protection 1 | . . . 7 4 . . . . . . 1 Energy Gun 1 | . . . . 3 . . 6 . . . . Ballistic Gun 20 | . 26 25 29 28 33 36 8 . . . . Impact Weapon 1 | . 1 7 4 . . . 2 . . . . Slashing Weapon 2 | . . . 1 4 5 . 6 3 1 . 3 Naked Turns . | . . . . . . . . . . . . Heaviest Build 107 | 14 30 35 48 53 63 65 68 25 13 12 107 Greatest Support 69 | 40 40 60 60 68 68 68 69 60 22 12 60 Greatest Overweight (x) 5 | . . . . 1 1 1 2 5 . . 2 Average Overweight (x) . | . . . . . . . . . . . . Largest Inventory Capacity 15 | 8 15 15 15 15 15 15 15 15 5 5 5 Average Capacity 12 | 8 14 15 15 15 15 15 15 6 5 5 5 Most Carried 15 | 6 14 15 15 15 15 14 12 10 4 4 5 Average Carried 10 | 6 7 14 14 14 13 13 10 4 2 4 4 Final Capacity 15 | 8 15 15 15 15 15 15 15 5 5 5 5 Final Carried 15 | 6 14 15 15 15 14 12 10 3 4 4 4 Class Distribution -------------------- 35% | Mutant 21% | Scavenger-Executioner 18% | Tank 8% | Scavenger-Gunner 6% | Scavenger-Mutant 3% | Skirmisher Dominant Class ---------------- Mutant | -10/Materials Mutant | -9/Materials Tank | -8/Materials Tank | -7/Factory Scavenger-Executioner | -6/Factory Scavenger-Executioner | -5/Factory Scavenger-Mutant | -5/Extension Mutant | -4/Factory Mutant | -4/Upper Caves Mutant | -4/Upper Caves Executioner | -3/Research Resources | -11 -10 -9 -8 -7 -6 -5 -5 -4 -4 -4 -3 ----------- Run | Yrd Mat Mat Mat Fac Fac Fac Ext Fac Upp Upp Res Matter Collected 3681 | 220 153 388 341 815 333 194 786 12 368 40 31 Remotely 458 | . . . . . 284 174 . . . . . Salvage Created 3923 | . 255 655 601 1163 306 . 682 12 . . 249 Parts 198 | . 19 42 27 57 20 . 28 2 . . 3 Haulers Intercepted 4 | . 1 . 2 1 . . . . . . . Recyclers Shooed 6 | . 1 . 2 . 2 . 1 . . . . Parts Field Recycled . | . . . . . . . . . . . . Retrieved Matter . | . . . . . . . . . . . . Parts Self-Destructed 10 | . . . . . . . . . 10 . . Prevented . | . . . . . . . . . . . . Kills | -11 -10 -9 -8 -7 -6 -5 -5 -4 -4 -4 -3 ------- Run | Yrd Mat Mat Mat Fac Fac Fac Ext Fac Upp Upp Res Combat Hostiles Destroyed 77 | . 7 14 7 22 4 . 13 . . . 10 Melee 3 | . . . . . . . 3 . . . . Guns 58 | . 7 14 7 22 4 . 4 . . . . Cannons 6 | . . . . . . . 4 . . . 2 AOE 10 | . . . . . . . 2 . . . 8 Classes Destroyed 14 | . 3 4 1 3 2 . . . . . 1 Worker 3 | . . . . 1 2 . . . . . . Builder 1 | . . . . . . . . . . . 1 Hauler 4 | . 1 . 2 1 . . . . . . . Recycler 3 | . . . 2 1 . . . . . . . Mechanic 1 | . . . . . 1 . . . . . . Operator 3 | . . 1 . . 1 . . 1 . . . Watcher 4 | . . 1 . . . . 2 . . . 1 Swarmer 8 | . 4 . . 4 . . . . . . . Grunt 40 | . 3 9 4 9 . . 6 . . . 9 Duelist 5 | . . 3 1 1 . . . . . . . Sentry 14 | . . 2 2 5 1 . 4 . . . . Hunter 4 | . . . . 1 2 . . . . . 1 Programmer 3 | . . . . 2 . . 1 . . . . Behemoth 1 | . . . . . 1 . . . . . . Thug 2 | . . . . . . . 2 . . . . Best Kill Streak 12 | . 5 6 3 7 2 . 4 1 . . 12 Combat Bots Only 10 | . 5 6 3 7 2 . 4 . . . 10 Max Kills in Single Turn 4 | . 1 2 1 2 1 . 2 1 . . 4 Gunslinging 1 | . . 1 . 1 . . . . . . . Exploded 4 | . . . . . . . 1 . . . 4 Melee 1 | . . . . . . . 1 . . . . Uniques/NPCs Destroyed . | . . . . . . . . . . . . Combat | -11 -10 -9 -8 -7 -6 -5 -5 -4 -4 -4 -3 -------- Run | Yrd Mat Mat Mat Fac Fac Fac Ext Fac Upp Upp Res Hostile Shots Fired 1081 | . 46 51 36 201 66 78 128 176 20 . 279 Missed 385 | . 10 14 9 71 21 23 38 81 7 . 111 Damage Taken 12940 | . 346 619 462 1561 814 1020 2262 1975 536 . 3345 Core 3548 | . 115 81 90 145 92 170 462 925 167 . 1301 Absorbed by Shields . | . . . . . . . . . . . . Redirected to Shielding 64 | . . . 64 . . . . . . . . Ignored by Resistances 296 | . . . 7 . . . . . . . 289 Core Remaining (%) 65 | 100 54 79 83 79 89 . 36 . . 5 . Volleys Fired 188 | . 25 41 18 44 13 . 21 . 10 . 16 Largest 6 | . 2 3 4 5 6 . 6 . 1 . 3 Hottest 312 | . 40 69 94 157 188 . 276 . 48 . 312 Shots Fired 573 | . 50 92 68 181 72 . 79 . 10 . 21 Gun 517 | . 50 92 68 181 68 . 58 . . . . Cannon 39 | . . . . . 4 . 15 . 10 . 10 Launcher 17 | . . . . . . . 6 . . . 11 Special . | . . . . . . . . . . . . Kinetic 516 | . 50 92 68 167 72 . 57 . 10 . . Thermal 23 | . . . . . . . 16 . . . 7 Explosive 17 | . . . . . . . 6 . . . 11 Electromagnetic 17 | . . . . 14 . . . . . . 3 Robot Hit Streak 22 | . 16 10 14 22 8 . 9 . . . 6 Robot Miss Streak 6 | . 3 2 2 6 6 . 6 . . . 4 Penetration Max 1 | . . . . 1 1 . 1 . . . . Secondary Targets 11 | . 3 2 1 5 . . . . . . . Max Gunslinging Chain 2 | . 1 1 1 2 . . . . . . . Shots Hit Robots 451 | . 35 71 55 151 50 . 79 1 . . 9 Core Hits 279 | . 14 24 19 93 23 . 71 . . . 35 Critical Kills 4 | . 1 . . . 3 . . . . . . Critical Parts Destroyed 3 | . . 1 1 1 . . . . . . . Critical Strikes 14 | . 1 1 1 2 3 . 6 . . . . Burn 1 | . . . . . . . 1 . . . . Destroy 6 | . . . 1 2 3 . . . . . . Blast 2 | . . . . . . . 2 . . . . Smash 2 | . 1 1 . . . . . . . . . Sever 3 | . . . . . . . 3 . . . . Melee Attacks 104 | . 3 8 12 13 14 6 18 15 . . 15 Impact 20 | . 3 8 7 . . . 2 . . . . Slashing 72 | . . . 5 13 14 . 10 15 . . 15 Piercing 12 | . . . . . . 6 6 . . . . Sneak Attacks 20 | . 1 1 4 3 5 . 6 . . . . Combat Hostiles . | . . . . . . . . . . . . Follow-up Attacks 7 | . . . . . . . 7 . . . . Damage Inflicted 13023 | . 522 1116 1182 3151 1433 . 2730 59 . . 2830 Guns 7143 | . 454 1043 794 2953 899 . 1000 . . . . Cannons 614 | . . . . . 96 . 359 . . . 159 Explosions 3141 | . . . . . . . 470 . . . 2671 Melee 2124 | . 68 73 388 198 438 . 901 58 . . . Ramming 1 | . . . . . . . . 1 . . . Kinetic 7107 | . 454 1043 794 2697 995 . 1124 . . . . Thermal 310 | . . . . . . . 235 . . . 75 Explosive 3141 | . . . . . . . 470 . . . 2671 Electromagnetic 340 | . . . . 256 . . . . . . 84 Impact 552 | . 68 73 295 . . . 116 . . . . Slashing 1337 | . . . 93 198 438 . 550 58 . . . Piercing 235 | . . . . . . . 235 . . . . Highest Corruption 18 | . 1 . 1 1 4 . 1 4 18 18 6 Average Corruption 3 | . 1 . 1 1 4 . 1 2 14 18 3 Corruption Purged . | . . . . . . . . . . . . Corruption Blocked . | . . . . . . . . . . . . Effects 53 | . 5 . 1 5 7 . 9 2 20 3 1 Message Errors 10 | . 1 . . 1 2 . 1 . 4 1 . Matter Fused 10 | . 1 . 1 1 2 . 1 1 3 . . Heat Flow Errors 8 | . . . . . . . . 1 7 . . Energy Discharges 12 | . 1 . . 1 2 . 3 . 3 1 1 Parts Rejected 1 | . . . . . . . 1 . . . . Data Loss (minor) 6 | . 1 . . 1 1 . 2 . 1 . . Data Loss (major) 4 | . 1 . . 1 . . 1 . 1 . . Alerts 1 | . . . . . . . . . . 1 . Misdirections 1 | . . . . . . . . . 1 . . Overload Shots . | . . . . . . . . . . . . Overflow Damage 647 | . . 39 176 56 141 . 127 18 . . 90 Projectiles . | . . . . . . . . . . . . Explosions 90 | . . . . . . . . . . . 90 Melee 557 | . . 39 176 56 141 . 127 18 . . . Knockbacks 5 | . . 2 2 . . . 1 . . . . Impact 5 | . . 2 2 . . . 1 . . . . Kinetic . | . . . . . . . . . . . . Secondary . | . . . . . . . . . . . . Self-Inflicted Damage 102 | . . . . . . . . . . . 102 Shots 2 | . . . . . . . . . . . 2 Rammed 1 | . . . . . . . . 1 . . . Targets Rammed 1 | . . . . . . . . 1 . . . Kicked . | . . . . . . . . . . . . Crushed . | . . . . . . . . . . . . Highest Temperature 231 | . 20 10 119 109 12 . 103 173 231 . 198 Average Temperature 47 | . 9 4 49 42 8 . 24 74 95 . 83 Received Heat Transfer 2127 | . 114 165 198 351 96 60 402 220 91 . 430 Siege Activations . | . . . . . . . . . . . . Robots Corrupted . | . . . . . . . . . . . . Combat Hostiles . | . . . . . . . . . . . . Parts Fried 6 | . . 1 3 . . . 2 . . . . Impact Corruptions 7 | . . 2 4 . . . 1 . . . . Robots Melted . | . . . . . . . . . . . . Combat Hostiles . | . . . . . . . . . . . . Parts Melted . | . . . . . . . . . . . . Heat Transferred 592 | . . . . . . . 518 . . . 74 Parts Sabotaged . | . . . . . . . . . . . . Parts Stolen . | . . . . . . . . . . . . Parts Stripped . | . . . . . . . . . . . . Power Chain Reactions . | . . . . . . . . . . . . Alert | -11 -10 -9 -8 -7 -6 -5 -5 -4 -4 -4 -3 ------- Run | Yrd Mat Mat Mat Fac Fac Fac Ext Fac Upp Upp Res Peak Influence 414 | . 141 320 212 389 209 82 212 327 . . 414 Initial 183 | . . 22 108 64 183 60 . 35 . . 40 Average 122 | . 36 150 140 197 123 62 134 147 . . 85 Maximum Alert Level 2 | . . 1 1 1 1 . 1 1 . . 2 Low Security (%) 81 | 100 100 71 86 49 82 100 99 68 . . 90 Level 1 18 | . . 28 13 50 17 . . 31 . . 7 Level 2 . | . . . . . . . . . . . 1 Level 3 . | . . . . . . . . . . . . Level 4 . | . . . . . . . . . . . . Level 5 . | . . . . . . . . . . . . High Security . | . . . . . . . . . . . . Max Security . | . . . . . . . . . . . . Squads Dispatched 24 | . 1 3 . 11 4 . . 3 . . 2 Investigation 4 | . . 1 . 2 1 . . . . . . Extermination 4 | . . . . 2 . . . 1 . . 1 Reinforcement 10 | . 1 2 . 1 3 . . 2 . . 1 Assault . | . . . . . . . . . . . . Garrison 6 | . . . . 6 . . . . . . . Intercept . | . . . . . . . . . . . . Searches Triggered . | . . . . . . . . . . . . Construction Impeded 2 | . . . . . 1 . . . . . 1 Haulers Reinforced . | . . . . . . . . . . . . Active Scanning Responses . | . . . . . . . . . . . . Cargo Convoy Interrupts . | . . . . . . . . . . . . Stealth | -11 -10 -9 -8 -7 -6 -5 -5 -4 -4 -4 -3 --------- Run | Yrd Mat Mat Mat Fac Fac Fac Ext Fac Upp Upp Res Distress Signals 14 | . 2 4 2 1 1 . 2 1 . . 1 Communications Jammed . | . . . . . . . . . . . . Distress Signals . | . . . . . . . . . . . . Times Spotted 163 | . 14 22 10 28 6 6 21 23 12 . 21 Peak Tracking Total 16 | . 7 5 4 7 2 4 6 11 5 . 16 Tactical Retreats 15 | . . 3 . 1 . . . 6 4 . 1 Traps | -11 -10 -9 -8 -7 -6 -5 -5 -4 -4 -4 -3 ------- Run | Yrd Mat Mat Mat Fac Fac Fac Ext Fac Upp Upp Res Traps Triggered 7 | . 1 1 1 . 1 . 2 1 . . . Indirectly . | . . . . . . . . . . . . Trap Hack Attempts . | . . . . . . . . . . . . Triggered . | . . . . . . . . . . . . Disarmed . | . . . . . . . . . . . . Reprogrammed . | . . . . . . . . . . . . Reused . | . . . . . . . . . . . . Traps Extracted . | . . . . . . . . . . . . Installed . | . . . . . . . . . . . . Triggered . | . . . . . . . . . . . . Machines | -11 -10 -9 -8 -7 -6 -5 -5 -4 -4 -4 -3 ---------- Run | Yrd Mat Mat Mat Fac Fac Fac Ext Fac Upp Upp Res Machines Disabled 8 | . . 1 . 4 1 . 1 . . . 1 Max in Single Turn 2 | . . 1 . 2 1 . 1 . . . 1 Machines Repaired . | . . . . . . . . . . . . Machines Dismantled . | . . . . . . . . . . . . Machines Sabotaged . | . . . . . . . . . . . . Overloaded Fab Kills . | . . . . . . . . . . . . Hacking | -11 -10 -9 -8 -7 -6 -5 -5 -4 -4 -4 -3 --------- Run | Yrd Mat Mat Mat Fac Fac Fac Ext Fac Upp Upp Res Machines Accessed 23 | . 4 3 2 3 4 1 4 . . . 2 Terminals 21 | . 4 3 2 2 3 1 4 . . . 2 Fabricators . | . . . . . . . . . . . . Repair Stations . | . . . . . . . . . . . . Recycling Units . | . . . . . . . . . . . . Scanalyzers . | . . . . . . . . . . . . Garrison Access 2 | . . . . 1 1 . . . . . . Total Hacks 53 | . 8 8 6 9 7 4 7 . . . 4 Successful 15 | . 1 1 2 2 2 2 4 . . . 1 Failed 38 | . 7 7 4 7 5 2 3 . . . 3 Catastrophic 6 | . . . 1 1 2 1 . . . . 1 Database Lockouts . | . . . . . . . . . . . . Manual 39 | . 8 8 5 4 4 4 3 . . . 3 Terminals 50 | . 8 8 6 7 6 4 7 . . . 4 Fabricators . | . . . . . . . . . . . . Repair Stations . | . . . . . . . . . . . . Recycling Units . | . . . . . . . . . . . . Scanalyzers . | . . . . . . . . . . . . Garrison Access 3 | . . . . 2 1 . . . . . . Terminal Hacks 8 | . 1 . 1 1 1 1 3 . . . . Robot Analysis 1 | . . . 1 . . . . . . . . Prototype ID Bank 1 | . . . . . . . 1 . . . . Open Door 2 | . . . . . . . 2 . . . . Open DSF 1 | . . . . . 1 . . . . . . Branch Access Points 2 | . 1 . . . . 1 . . . . . Emergency Access Points 1 | . . . . 1 . . . . . . . Fabricator Hacks . | . . . . . . . . . . . . Repair Station Hacks . | . . . . . . . . . . . . Recycling Unit Hacks . | . . . . . . . . . . . . Scanalyzer . | . . . . . . . . . . . . Garrison Access Hacks . | . . . . . . . . . . . . Unauthorized Hacks 7 | . . 1 1 1 1 1 1 . . . 1 Terminals 7 | . . 1 1 1 1 1 1 . . . 1 Botnet 7 | . . 1 1 1 1 1 1 . . . 1 Fabricators . | . . . . . . . . . . . . Repair Stations . | . . . . . . . . . . . . Recycling Units . | . . . . . . . . . . . . Scanalyzers . | . . . . . . . . . . . . Garrison Access . | . . . . . . . . . . . . Data Cores Recovered . | . . . . . . . . . . . . Used . | . . . . . . . . . . . . Hacking Detections 21 | . 4 3 2 3 3 1 3 . . . 2 Full Trace Events 3 | . . . . 2 1 . . . . . . Feedback Events . | . . . . . . . . . . . . Feedback Blocked . | . . . . . . . . . . . . Robot Schematics Acquired . | . . . . . . . . . . . . Robots Built . | . . . . . . . . . . . . Authchips . | . . . . . . . . . . . . Time . | . . . . . . . . . . . . Total Robot Build Rating . | . . . . . . . . . . . . Part Schematics Acquired . | . . . . . . . . . . . . Parts Built . | . . . . . . . . . . . . Authchips . | . . . . . . . . . . . . Time . | . . . . . . . . . . . . Total Part Build Rating . | . . . . . . . . . . . . Parts Repaired . | . . . . . . . . . . . . Time . | . . . . . . . . . . . . Parts Recycled . | . . . . . . . . . . . . Recycled Matter . | . . . . . . . . . . . . Retrieved Matter . | . . . . . . . . . . . . Retrieved Components . | . . . . . . . . . . . . Parts Scanalyzed . | . . . . . . . . . . . . Part Schematics Acquired . | . . . . . . . . . . . . Parts Damaged . | . . . . . . . . . . . . Bothacking | -11 -10 -9 -8 -7 -6 -5 -5 -4 -4 -4 -3 ------------ Run | Yrd Mat Mat Mat Fac Fac Fac Ext Fac Upp Upp Res Used RIF Installer . | . . . . . . . . . . . . Robots Hacked . | . . . . . . . . . . . . Non-combat . | . . . . . . . . . . . . Combat . | . . . . . . . . . . . . Robot Hacks Applied . | . . . . . . . . . . . . Relay Couplers Released . | . . . . . . . . . . . . Fabnet Peak Effective % . | . . . . . . . . . . . . Robots Rewired 9 | . . . . . . . 9 . . . . Allies Hacked . | . . . . . . . . . . . . Hacks Repelled . | . . . . . . . . . . . . Allies | -11 -10 -9 -8 -7 -6 -5 -5 -4 -4 -4 -3 -------- Run | Yrd Mat Mat Mat Fac Fac Fac Ext Fac Upp Upp Res Total Allies 10 | . . . . . . . 10 . . . . Largest Group 5 | . . . . . . . 5 . . . . Highest-Rated Group 155 | . . . . . . . 155 . . . . Highest-Rated Ally 39 | . . . . . . . 39 . . . . Total Orders . | . . . . . . . . . . . . Ally Attacks 56 | . . . . . . . 56 . . . . Total Damage 821 | . . . . . . . 821 . . . . Kills 6 | . . . . . . . 6 . . . . Allies Corrupted . | . . . . . . . . . . . . Allies Melted . | . . . . . . . . . . . . Intel | -11 -10 -9 -8 -7 -6 -5 -5 -4 -4 -4 -3 ------- Run | Yrd Mat Mat Mat Fac Fac Fac Ext Fac Upp Upp Res Robot Analysis Total 1 | . . . 1 . . . . . . . . Derelict Logs Recovered 2 | . . . . . . . . . 2 . . Drone Launches . | . . . . . . . . . . . . Drone Recoveries . | . . . . . . . . . . . . Exploration | -11 -10 -9 -8 -7 -6 -5 -5 -4 -4 -4 -3 ------------- Run | Yrd Mat Mat Mat Fac Fac Fac Ext Fac Upp Upp Res Turns Passed 6640 | 7 969 542 684 1077 725 443 720 427 539 82 425 Spaces Moved 3658 | 3 503 221 320 445 378 253 264 354 584 90 243 Core 90 | . . . . . . . . 79 . . 11 Treads 2411 | 3 503 221 320 445 378 253 264 24 . . . Legs 146 | . . . . . . . . 2 . . 144 Wheels . | . . . . . . . . . . . . Hover 1011 | . . . . . . . . 249 584 90 88 Flight . | . . . . . . . . . . . . Fastest Speed 40 | 160 160 160 160 160 160 160 160 40 81 90 50 Average Speed 141 | 160 160 160 160 172 160 160 191 92 87 90 126 Slowest Speed 320 | 160 160 160 160 240 240 240 320 300 90 90 190 Overloaded Moves . | . . . . . . . . . . . . Propulsion Burnouts . | . . . . . . . . . . . . Robots Hopped . | . . . . . . . . . . . . Cave-ins Triggered 1 | . . . . . . . . . 1 . . Exploration Rate (%) 27 | 2 80 27 24 15 13 8 38 13 80 14 10 Regions Visited 11 Branch Regions 3 Pre-discovered Areas 1 | . . . . . . . . . 1 . . Known Exits Taken 5 | . . . . . . 1 1 1 1 1 . Unknown Exits Taken 6 | 1 1 1 1 1 1 . . . . . . Scrap Searched 3 | . . . . . . . . . 2 1 . Spaces Dug 60 | . 1 3 2 9 6 5 . 14 11 . 9 Terrain Destroyed 196 | . 1 3 2 14 10 5 38 14 11 . 98 Melee 48 | . 1 3 2 9 6 5 . 14 . . 8 Projectile 18 | . . . . . 4 . 2 . 11 . 1 AOE 130 | . . . . 5 . . 36 . . . 89 Terrain Rammed . | . . . . . . . . . . . . Walls Destroyed . | . . . . . . . . . . . . Machines Disabled . | . . . . . . . . . . . . Actions | -11 -10 -9 -8 -7 -6 -5 -5 -4 -4 -4 -3 --------- Run | Yrd Mat Mat Mat Fac Fac Fac Ext Fac Upp Upp Res Total 4531 | 4 611 311 429 628 436 278 406 425 599 90 314 Wait 279 | . 71 20 41 81 3 12 7 22 . . 22 Move 3646 | 2 502 220 319 444 377 252 263 353 582 89 243 Hop . | . . . . . . . . . . . . Pick Up 64 | . 7 7 12 15 9 2 7 1 2 . 2 Fast Attach 52 | . 1 3 3 4 1 . 8 18 2 1 11 Attach 41 | . . 2 4 7 7 4 10 5 1 . 1 Detach 3 | . . . . . . . . 3 . . . Swap 38 | 2 2 4 9 8 6 2 4 1 . . . Drop 48 | . . 6 11 12 6 . 2 6 1 . 4 Fire 188 | . 25 41 18 44 13 . 21 . 10 . 16 Melee 97 | . 3 8 12 13 14 6 11 15 . . 15 Ram . | . . . . . . . . . . . . Kick . | . . . . . . . . . . . . Crush 1 | . . . . . . . . 1 . . . Escape Stasis 3 | . . . . . . . 2 . 1 . . Rewire 71 | . . . . . . . 71 . . . . Trap . | . . . . . . . . . . . . Miscellaneous . | . . . . . . . . . . . . Route ------- -11/Scrapyard -10/Materials (discovered 4 exits: *Mat x2 / *Min x2) -9/Materials -8/Materials -7/Factory -6/Factory -5/Factory (discovered 4 exits: Upp x2 / *Ext x2) -5/Extension -4/Factory -4/Upper Caves -4/Upper Caves -3/Research History --------- Turn | Location | Event 4 | -11/Scrapyard | Discovered new exit (range 3) 8 | -11/Scrapyard | Entered Materials 176 | -10/Materials | Discovered new exit (range 5) 253 | -10/Materials | Discovered new exit (range 12) 315 | -10/Materials | Build established: Mutant 389 | -10/Materials | Identified exit to Mines 394 | -10/Materials | Discovered new exit (range 16) 977 | -10/Materials | Entered another Materials area 977 | -9/Materials | Evolved 2 slots: Propulsion x1, Weapon x1 1491 | -9/Materials | Discovered new exit (range 16) 1519 | -9/Materials | Entered another Materials area 1519 | -8/Materials | Evolved 2 slots: Utility x1, Weapon x1 1934 | -8/Materials | Build established: Tank 2187 | -8/Materials | Discovered new exit (range 11) 2203 | -8/Materials | Entered Factory 2203 | -7/Factory | Evolved 2 slots: Utility x1, Weapon x1 2477 | -7/Factory | Garrison activated, responded to threat 2700 | -7/Factory | Destroyed 7 combat bots 2872 | -7/Factory | Lost 3 parts (1n1u1w) 2972 | -7/Factory | Garrison activated, responded to threat 3164 | -7/Factory | Build established: Scavenger-Gunner 3269 | -7/Factory | Discovered new exit (range 7) 3280 | -7/Factory | Entered another Factory area 3280 | -6/Factory | Evolved 2 slots: Utility x1, Weapon x1 3526 | -6/Factory | Spotted B-75 Beast 3580 | -6/Factory | Destroyed B-75 Beast 3609 | -6/Factory | Build established: Scavenger-Executioner 3610 | -6/Factory | Lost 4 parts (2n1u1w) 3930 | -6/Factory | Discovered new exit (range 11) 4005 | -6/Factory | Entered another Factory area 4005 | -5/Factory | Evolved 2 slots: Utility x1, Weapon x1 4191 | -5/Factory | Identified exit to Upper Caves 4191 | -5/Factory | Identified exit to Extension 4395 | -5/Factory | Spotted B-75 Beast 4448 | -5/Factory | Entered Extension 4472 | -5/Extension | Lost 8 parts (1p2n2u3w) 4748 | -5/Extension | Disrupted transfer network 4769 | -5/Extension | Lost 4 parts (2n2w) 4884 | -5/Extension | Rescued a captive Derelict 4926 | -5/Extension | Lost 3 parts (2n1u) 5099 | -5/Extension | Spotted B-75 Beast 5110 | -5/Extension | Spotted B-75 Beast 5158 | -5/Extension | Core integrity fell below 50% 5165 | -5/Extension | Discovered new exit (range 3) 5166 | -5/Extension | Lost 4 allies 5166 | -5/Extension | Identified exit to Factory 5168 | -5/Extension | Entered Factory 5168 | -4/Factory | Evolved 2 slots: Propulsion x1, Utility x1 5193 | -4/Factory | Lost 12 parts (1p4n2u5w) 5204 | -4/Factory | Build established: Scavenger-Mutant 5356 | -4/Factory | Lost 5 parts (2n3u) 5528 | -4/Factory | Core integrity fell below 50% 5581 | -4/Factory | Discovered new exit (range 15) 5588 | -4/Factory | Build established: Mutant 5594 | -4/Factory | Core integrity fell below 20% 5594 | -4/Factory | Identified exit to Upper Caves 5595 | -4/Factory | Entered Upper Caves 5641 | -4/Upper Caves | Spotted B-86 Titan 5731 | -4/Upper Caves | Crushed by falling debris 5732 | -4/Upper Caves | System corruption reached 10% 5762 | -4/Upper Caves | Lost 3 parts (1n2w) 5834 | -4/Upper Caves | Learned location of Quarantine (-3) 6067 | -4/Upper Caves | Ambushed by wild Derelicts 6078 | -4/Upper Caves | Learned Research garrison access intel 6123 | -4/Upper Caves | Discovered new exit (range 13) 6133 | -4/Upper Caves | Identified exit to Upper Caves 6134 | -4/Upper Caves | Entered another Upper Caves area 6194 | -4/Upper Caves | Discovered new exit (range 15) 6207 | -4/Upper Caves | Identified exit to Research 6216 | -4/Upper Caves | Entered Research 6216 | -3/Research | Evolved 2 slots: Utility x2 6217 | -3/Research | Loaded intel: 4 garrison access locations 6416 | -3/Research | Spotted B-86 Titan 6437 | -3/Research | Found Hvy. Reactive Plating 6621 | -3/Research | Core integrity fell below 50% 6625 | -3/Research | Destroyed 10 combat bots 6636 | -3/Research | Core integrity fell below 20% 6641 | -3/Research | Destroyed by G-67 Veteran with Plasma Rifle Last Messages --------------- 06609_ The unstable cave ceiling collapses. 06613_ Penetrated by Slug. 06613_ Com. HERF Cannon destroyed. 06616_ Slug penetrates Wall. 06621_ K-01 Serf destroyed. 06622_ P-80 Master resets S-43 Plague, system corruption cleaned. 06630_ Penetrated by Slug. 06630_ Slug penetrates Wall. 06631_ System corrupted: Energy discharge (-35). 06632_ P-80 Master resets S-43 Plague, system corruption cleaned. 06633_ O-32 Director: "IFF HANDSHAKE FAILED. SECURING TERMINAL." 06633_ Penetrated by Slug. 06636_ Imp. Gyrokinetic Inverter destroyed. 06638_ Slug penetrates Wall. 06638_ Penetrated by Slug. 06638_ Terminal disabled. 06640_ Exp. Coolant Injector destroyed. Map ----- +----------------------------------------------------+ | ?????????????????????????????????????????????????? | | ?????????????????????????????????????????????????? | | ????????##############???????????????????????????? | | ????????# = #???????????????????????????? | | ????????# #???????????????????????????? | | ????????# #???????????????????????????? | | ????????# #???????????????????????????? | | ????????# ! #??????????????? ?????????? | | ????????# ######????????# ?? ??????? | | ????????# # #????????# #? ?????? | | ????????# + #????????# #? ?????? | | ????????# # #????????# #? ?????? | | ????????#! # #????????# ###/###### | | ????????# # #????????# ## | | ????????# ! # #????????# ## | | ??????#########+###### ########## ## | | ??????# # ###### ## | | ??????# # s ## | | ??????# # s p pg ## | | ??????# # s ## | | ??????# # = !] | | ??????# # *% [!! ]] | | ??????# [# s g [!! ]] | | ??????# # !! % | | ??????# " o h | | ??????# # "" """@ | | ??????# / """T""" | | ??????# ##################+### # #% # | | ??????# #????????????????????## | | ??????# #?????????????????????# | | ??????# #?????????????????????# | | ??????# #?????????????????????# !% | | ??????# #?????????????????????# # | | ??????#########????????????????????? # | | ????????????????????????????????????# # | | ???????????????????????????????????? # | | ????????????????????????????????????# ### | | ???????????????????????????????????? ??? | | ????????????????????????????????????? ???? | | ???????????????????????????????????? ??????? | | ???????????????????????????????????# ???????? | | ???????????????????????????????????# ########## | | ???????????????????????????????????# # ## | | ???????????????????????????????????# #!! ## | | ???????????????????????????????????# #! "## = | | ???????????????????????????????????# # T## | | ???????????????????????????????????# # "## | | ???????????????????????????????????+ # #" | | ???????????????????????????????????# # "# | | ???????????????????????????????????# # ## | +----------------------------------------------------+ Best States ------------- Heat Dissipation 78 Coolant Potential 120 Energy Generation 23 Energy Capacity 315 Matter Stores 300 Matter Capacity 300 Sight Range 16 Robot Scan Range 16 Terrain Scan Density 10 Armor Coverage 600 Resistance: KI 40 Weapon Shielding 66 Evasion (%) 61 Target Analysis 5 Armor Integrity Analysis 30 Recoil Reduction 3 Kinecelleration 30 Offensive Hacking 20 Item Schematics ----------------- None Robot Schematics ------------------ None Fabricated ------------ Nothing Alien Tech Used ----------------- None Achievements -------------- Executioner Challenges ------------ None Game ------ Seed DefenseFlightDesublimator Manual? 0 Play Time 01:19:58 Cumulative 39.9 hours Start 2024.05.01 @ 11:50:54 End 2024.05.01 @ 13:09:15 Sessions 1 Manual Loads 0 Difficulty Rogue Special Mode None Game No. 34 Rogue 34 Adventurer 0 Explorer 0 Win Type - Total 2 Types 2/0/0/0/0/0/0/0/0 Lore% 20 Gallery% 38 Achievement% 29 Wizard Run 0 Options --------- Layout 1 ASCII 0 Keyboard 0 Movement Numpad Keybinds 0 Fullscreen 2 Font 24/Smallcaps Map View 50x40 Zoom Use 0% Tactical HUD 1 Map Filters NONE Filters NONE Steam 1 RUN: d465dd19-2877-485c-83c1-bdf719ced166